[Event "Early-Titled-Tuesday-Blitz-February-20-2024"]
[Site "Chess.com"]
[Date "2024.02.20"]
[Round "2"]
[White "mestrefeitosa19"]
[Black "ajeale2"]
[Result "0-1"]
[WhiteElo "2237"]
[BlackElo "2507"]
[TimeControl "180+1"]
[EndTime "8:19:20 PST"]
[Termination "ajeale2 won by checkmate"]

1. c4 {[%clk 0:03:00.9]} 1... e6 {[%clk 0:02:53.2]} 2. e4 {[%clk 0:02:58.5]}
2... d5 {[%clk 0:02:52.7]} 3. exd5 {[%clk 0:02:58.6]} 3... exd5 {[%clk
0:02:53.6]} 4. cxd5 {[%clk 0:02:59.2]} 4... Nf6 {[%clk 0:02:54.3]} 5. Nc3 {[%clk
0:02:58]} 5... Nxd5 {[%clk 0:02:54.6]} 6. Bc4 {[%clk 0:02:58.3]} 6... Nb6 {[%clk
0:02:54.6]} 7. Bb3 {[%clk 0:02:58]} 7... Nc6 {[%clk 0:02:54.6]} 8. Nf3 {[%clk
0:02:58.4]} 8... Qe7+ {[%clk 0:02:54.5]} 9. Qe2 {[%clk 0:02:57.6]} 9... Bg4
{[%clk 0:02:55]} 10. Nd5 {[%clk 0:02:28]} 10... Nxd5 {[%clk 0:02:51.9]} 11. Bxd5
{[%clk 0:02:26.3]} 11... Qxe2+ {[%clk 0:02:51.2]} 12. Kxe2 {[%clk 0:02:25.9]}
12... Nd4+ {[%clk 0:02:31.3]} 13. Kd3 {[%clk 0:02:21]} 13... O-O-O {[%clk
0:02:29.4]} 14. Kxd4 {[%clk 0:02:10.1]} 14... c6 {[%clk 0:02:25.6]} 15. Kc3
{[%clk 0:02:01]} 15... Rxd5 {[%clk 0:02:22]} 16. d4 {[%clk 0:02:01.1]} 16... f6
{[%clk 0:02:06.3]} 17. Be3 {[%clk 0:01:51.5]} 17... a5 {[%clk 0:02:02.7]} 18. a3
{[%clk 0:01:50.6]} 18... g6 {[%clk 0:01:54.2]} 19. Nd2 {[%clk 0:01:49.1]} 19...
Bg7 {[%clk 0:01:52]} 20. Nc4 {[%clk 0:01:47]} 20... Kb8 {[%clk 0:01:42.2]} 21.
Nb6 {[%clk 0:01:37.6]} 21... Rb5 {[%clk 0:01:30.8]} 22. Nc4 {[%clk 0:01:37.6]}
22... Be6 {[%clk 0:01:22.8]} 23. Nd2 {[%clk 0:01:20.5]} 23... a4 {[%clk
0:01:12.4]} 24. Rab1 {[%clk 0:01:14.6]} 24... f5 {[%clk 0:01:12]} 25. b4 {[%clk
0:01:13.3]} 25... axb3 {[%clk 0:00:56.3]} 26. Nxb3 {[%clk 0:01:13.2]} 26... Rd8
{[%clk 0:00:54.8]} 27. Nd2 {[%clk 0:01:01.8]} 27... Rxb1 {[%clk 0:00:38.9]} 28.
Rxb1 {[%clk 0:01:00.7]} 28... c5 {[%clk 0:00:39.4]} 29. Nf3 {[%clk 0:00:53.7]}
29... Bd5 {[%clk 0:00:37.6]} 30. Bf4+ {[%clk 0:00:32]} 30... Ka7 {[%clk
0:00:32.4]} 31. Be5 {[%clk 0:00:30.9]} 31... cxd4+ {[%clk 0:00:19.4]} 32. Bxd4+
{[%clk 0:00:29]} 32... Bxd4+ {[%clk 0:00:19.7]} 33. Nxd4 {[%clk 0:00:29.9]}
33... Bxg2 {[%clk 0:00:19.6]} 34. Nb5+ {[%clk 0:00:24.9]} 34... Kb8 {[%clk
0:00:20]} 35. Nd4 {[%clk 0:00:23.9]} 35... Rc8+ {[%clk 0:00:19.3]} 36. Kd2
{[%clk 0:00:23.5]} 36... Be4 {[%clk 0:00:19.8]} 37. Rb4 {[%clk 0:00:22.6]} 37...
Rd8 {[%clk 0:00:18]} 38. Ke3 {[%clk 0:00:22.8]} 38... Bd5 {[%clk 0:00:16.1]} 39.
Kf4 {[%clk 0:00:21.4]} 39... Re8 {[%clk 0:00:12.7]} 40. Kg5 {[%clk 0:00:21.5]}
40... Re4 {[%clk 0:00:11.2]} 41. Kh6 {[%clk 0:00:21.2]} 41... Rh4+ {[%clk
0:00:11.1]} 42. Kg7 {[%clk 0:00:21.6]} 42... Rxh2 {[%clk 0:00:11.9]} 43. Nb5
{[%clk 0:00:20.2]} 43... Rxf2 {[%clk 0:00:11.2]} 44. Nc3 {[%clk 0:00:19.3]}
44... Bc6 {[%clk 0:00:10.8]} 45. a4 {[%clk 0:00:18]} 45... g5 {[%clk 0:00:10.8]}
46. a5 {[%clk 0:00:18.4]} 46... Ka7 {[%clk 0:00:09.2]} 47. Nd1 {[%clk
0:00:18.8]} 47... Rf3 {[%clk 0:00:08.3]} 48. Nb2 {[%clk 0:00:16.7]} 48... g4
{[%clk 0:00:08]} 49. Nc4 {[%clk 0:00:15.8]} 49... Rf4 {[%clk 0:00:07.2]} 50. a6
{[%clk 0:00:15]} 50... Bd5 {[%clk 0:00:05.8]} 51. axb7 {[%clk 0:00:14.2]} 51...
Bxb7 {[%clk 0:00:06.5]} 52. Ra4+ {[%clk 0:00:13.6]} 52... Kb8 {[%clk 0:00:07.1]}
53. Rb4 {[%clk 0:00:12.7]} 53... g3 {[%clk 0:00:06.6]} 54. Rb3 {[%clk
0:00:07.4]} 54... Rxc4 {[%clk 0:00:05.7]} 55. Rxg3 {[%clk 0:00:08]} 55... f4
{[%clk 0:00:06.4]} 56. Rg4 {[%clk 0:00:07.5]} 56... h5 {[%clk 0:00:05.5]} 57.
Rh4 {[%clk 0:00:07.2]} 57... Bf3 {[%clk 0:00:04.9]} 58. Kf6 {[%clk 0:00:06.3]}
58... Bg4 {[%clk 0:00:05.4]} 59. Kg5 {[%clk 0:00:06.3]} 59... f3 {[%clk
0:00:06]} 60. Rh2 {[%clk 0:00:06.8]} 60... Re4 {[%clk 0:00:05]} 61. Rf2 {[%clk
0:00:06.6]} 61... Re2 {[%clk 0:00:04.7]} 62. Rf1 {[%clk 0:00:06.2]} 62... f2
{[%clk 0:00:04.7]} 63. Kh4 {[%clk 0:00:06]} 63... Kc7 {[%clk 0:00:04.2]} 64. Kg3
{[%clk 0:00:05.6]} 64... Kd6 {[%clk 0:00:04.2]} 65. Rd1+ {[%clk 0:00:05.2]}
65... Ke5 {[%clk 0:00:04.3]} 66. Rh1 {[%clk 0:00:06.1]} 66... Kf5 {[%clk
0:00:03.5]} 67. Rh2 {[%clk 0:00:05.6]} 67... Kg5 {[%clk 0:00:03.7]} 68. Rh1
{[%clk 0:00:04.6]} 68... h4+ {[%clk 0:00:03.2]} 69. Kg2 {[%clk 0:00:05.1]} 69...
f1=Q+ {[%clk 0:00:02.7]} 70. Kxf1 {[%clk 0:00:04.3]} 70... Rd2 {[%clk
0:00:03.2]} 71. Rg1 {[%clk 0:00:03]} 71... Rd1+ {[%clk 0:00:03.4]} 72. Kg2
{[%clk 0:00:03.4]} 72... Rxg1+ {[%clk 0:00:04.3]} 73. Kxg1 {[%clk 0:00:04.3]}
73... Kf4 {[%clk 0:00:04.8]} 74. Kh2 {[%clk 0:00:05.2]} 74... h3 {[%clk
0:00:05.1]} 75. Kg1 {[%clk 0:00:06.1]} 75... Kg3 {[%clk 0:00:05.3]} 76. Kh1
{[%clk 0:00:06.3]} 76... Bf3+ {[%clk 0:00:06]} 77. Kg1 {[%clk 0:00:06.7]} 77...
h2+ {[%clk 0:00:06.9]} 78. Kf1 {[%clk 0:00:07.2]} 78... h1=Q# {[%clk 0:00:07.8]}
0-1

[Event "Early-Titled-Tuesday-Blitz-February-20-2024"]
[Site "Chess.com"]
[Date "2024.02.20"]
[Round "2"]
[White "MaestroCheck"]
[Black "Zohid6"]
[Result "0-1"]
[WhiteElo "2577"]
[BlackElo "2866"]
[TimeControl "180+1"]
[EndTime "8:19:22 PST"]
[Termination "Zohid6 won by resignation"]

1. e4 {[%clk 0:03:00.9]} 1... e5 {[%clk 0:02:59.3]} 2. Nf3 {[%clk 0:03:00.6]}
2... Nf6 {[%clk 0:02:59.6]} 3. d4 {[%clk 0:02:59.9]} 3... Nxe4 {[%clk
0:02:58.4]} 4. dxe5 {[%clk 0:02:59.7]} 4... d5 {[%clk 0:02:54.8]} 5. Nbd2 {[%clk
0:02:59]} 5... Qd7 {[%clk 0:02:52.2]} 6. Bd3 {[%clk 0:02:57.2]} 6... Nc5 {[%clk
0:02:51.8]} 7. Be2 {[%clk 0:02:57.7]} 7... Be7 {[%clk 0:02:51.6]} 8. O-O {[%clk
0:02:56.7]} 8... Nc6 {[%clk 0:02:51.5]} 9. c3 {[%clk 0:02:54.9]} 9... a5 {[%clk
0:02:50.9]} 10. Re1 {[%clk 0:02:54.9]} 10... O-O {[%clk 0:02:50.7]} 11. Nf1
{[%clk 0:02:52]} 11... b6 {[%clk 0:02:46.4]} 12. Ng3 {[%clk 0:02:46]} 12... Rd8
{[%clk 0:02:43.7]} 13. Be3 {[%clk 0:02:44.6]} 13... Qe8 {[%clk 0:02:24.1]} 14.
Qc2 {[%clk 0:02:42.3]} 14... Ne6 {[%clk 0:02:19.5]} 15. Rad1 {[%clk 0:02:36.8]}
15... Bb7 {[%clk 0:02:15]} 16. Bd3 {[%clk 0:02:18.9]} 16... g6 {[%clk
0:02:07.8]} 17. Bb5 {[%clk 0:02:17]} 17... Ba6 {[%clk 0:02:00.5]} 18. Qa4 {[%clk
0:02:14.8]} 18... Bxb5 {[%clk 0:01:59.3]} 19. Qxb5 {[%clk 0:02:13]} 19... Qd7
{[%clk 0:01:54.4]} 20. c4 {[%clk 0:02:06.8]} 20... d4 {[%clk 0:01:47.4]} 21. Bc1
{[%clk 0:01:57.7]} 21... Nc5 {[%clk 0:01:44.2]} 22. Ne4 {[%clk 0:01:54.4]} 22...
d3 {[%clk 0:01:28.8]} 23. Bg5 {[%clk 0:01:34]} 23... Nxe4 {[%clk 0:01:14.7]} 24.
Bxe7 {[%clk 0:01:22.2]} 24... Nxe7 {[%clk 0:00:47.7]} 25. Qxd7 {[%clk
0:01:20.2]} 25... Rxd7 {[%clk 0:00:48.4]} 26. Rxe4 {[%clk 0:01:21.1]} 26... Nc6
{[%clk 0:00:48.2]} 27. a3 {[%clk 0:01:18.3]} 27... Re8 {[%clk 0:00:46.2]} 28.
Re3 {[%clk 0:01:12.9]} 28... Rde7 {[%clk 0:00:46.2]} 29. Rdxd3 {[%clk
0:01:07.8]} 29... Nxe5 {[%clk 0:00:46.2]} 30. Nxe5 {[%clk 0:01:08.3]} 30... Rxe5
{[%clk 0:00:47.1]} 31. Rxe5 {[%clk 0:01:08.9]} 31... Rxe5 {[%clk 0:00:47.9]} 32.
Kf1 {[%clk 0:01:09.6]} 32... Rc5 {[%clk 0:00:44.8]} 33. Rc3 {[%clk 0:01:01.9]}
33... a4 {[%clk 0:00:38.8]} 34. Ke2 {[%clk 0:01:00.8]} 34... Kf8 {[%clk
0:00:39.2]} 35. Kd3 {[%clk 0:01:00.7]} 35... Ke7 {[%clk 0:00:35.9]} 36. Rc2
{[%clk 0:01:00.2]} 36... Re5 {[%clk 0:00:35.7]} 37. Re2 {[%clk 0:00:53.5]} 37...
Kd6 {[%clk 0:00:35.7]} 38. Rd2 {[%clk 0:00:49.9]} 38... Kc5 {[%clk 0:00:34.5]}
39. Kc3 {[%clk 0:00:47.4]} 39... c6 {[%clk 0:00:34]} 40. Rd7 {[%clk 0:00:45.7]}
40... Rf5 {[%clk 0:00:34.4]} 41. f3 {[%clk 0:00:45.3]} 41... Rf4 {[%clk
0:00:34.7]} 42. Kd3 {[%clk 0:00:45.6]} 42... h5 {[%clk 0:00:34.2]} 43. Ra7
{[%clk 0:00:42.3]} 43... Rd4+ {[%clk 0:00:31.6]} 44. Ke3 {[%clk 0:00:41.6]}
44... Rxc4 {[%clk 0:00:30.3]} 45. Kd3 {[%clk 0:00:38.9]} 45... Rf4 {[%clk
0:00:25.1]} 46. Ke3 {[%clk 0:00:37.7]} 46... Rh4 {[%clk 0:00:21.5]} 47. h3
{[%clk 0:00:36.9]} 47... f5 {[%clk 0:00:16.7]} 48. f4 {[%clk 0:00:34.3]} 48...
Kd6 {[%clk 0:00:14.3]} 49. Rxa4 {[%clk 0:00:31.3]} 49... g5 {[%clk 0:00:14.2]}
50. Kf3 {[%clk 0:00:27.7]} 50... Ke6 {[%clk 0:00:09.9]} 51. Kg3 {[%clk
0:00:25.8]} 51... b5 {[%clk 0:00:06]} 52. Rb4 {[%clk 0:00:23.9]} 52... Rxf4
{[%clk 0:00:04.1]} 53. Rxf4 {[%clk 0:00:23.5]} 53... gxf4+ {[%clk 0:00:05]} 54.
Kxf4 {[%clk 0:00:24.4]} 54... c5 {[%clk 0:00:04.5]} 55. Ke3 {[%clk 0:00:17.6]}
55... Kd5 {[%clk 0:00:03.8]} 56. Kd3 {[%clk 0:00:18.1]} 56... f4 {[%clk
0:00:04.4]} 57. h4 {[%clk 0:00:17.7]} 57... c4+ {[%clk 0:00:03.7]} 58. Kc3
{[%clk 0:00:17.7]} 58... Kc5 {[%clk 0:00:04.4]} 59. Kc2 {[%clk 0:00:17.6]} 59...
Kd4 {[%clk 0:00:04.7]} 60. Kd2 {[%clk 0:00:18.3]} 60... Ke5 {[%clk 0:00:04.9]}
61. Kc3 {[%clk 0:00:18.5]} 61... Ke4 {[%clk 0:00:05.3]} 62. Kb4 {[%clk 0:00:19]}
62... Ke3 {[%clk 0:00:05.5]} 63. Kxb5 {[%clk 0:00:19.7]} 63... Kf2 {[%clk
0:00:06]} 64. a4 {[%clk 0:00:20.6]} 64... Kxg2 {[%clk 0:00:06.7]} 65. a5 {[%clk
0:00:21.5]} 65... f3 {[%clk 0:00:07.4]} 66. a6 {[%clk 0:00:22.4]} 66... f2
{[%clk 0:00:08.3]} 67. a7 {[%clk 0:00:23.1]} 67... f1=Q {[%clk 0:00:07.3]} 68.
a8=Q+ {[%clk 0:00:23.7]} 68... Kh3 {[%clk 0:00:07.3]} 69. Qd8 {[%clk 0:00:21.7]}
69... c3+ {[%clk 0:00:07.1]} 70. Kc5 {[%clk 0:00:16.8]} 70... c2 {[%clk
0:00:05.1]} 71. Qd7+ {[%clk 0:00:16.6]} 71... Kh2 {[%clk 0:00:04.5]} 72. Qd2+
{[%clk 0:00:15]} 72... Qg2 {[%clk 0:00:04.3]} 73. Qc1 {[%clk 0:00:15]} 73...
Qg1+ {[%clk 0:00:04]} 0-1

[Event "Early-Titled-Tuesday-Blitz-February-20-2024"]
[Site "Chess.com"]
[Date "2024.02.20"]
[Round "2"]
[White "amylazy"]
[Black "HittingRookBottom"]
[Result "0-1"]
[WhiteElo "2414"]
[BlackElo "2052"]
[TimeControl "180+1"]
[EndTime "8:19:22 PST"]
[Termination "HittingRookBottom won on time"]

1. d4 {[%clk 0:02:46.4]} 1... c6 {[%clk 0:02:59.7]} 2. Nf3 {[%clk 0:02:44.7]}
2... d5 {[%clk 0:03:00.3]} 3. c4 {[%clk 0:02:42.4]} 3... Bf5 {[%clk 0:02:59]} 4.
cxd5 {[%clk 0:02:41.8]} 4... cxd5 {[%clk 0:02:59.3]} 5. Nc3 {[%clk 0:02:40.6]}
5... Nf6 {[%clk 0:02:58.6]} 6. Qb3 {[%clk 0:02:40.5]} 6... e6 {[%clk 0:02:34]}
7. Qxb7 {[%clk 0:02:36.3]} 7... Nbd7 {[%clk 0:02:34.2]} 8. Bf4 {[%clk
0:02:31.5]} 8... Be7 {[%clk 0:02:18.8]} 9. Ne5 {[%clk 0:02:02.6]} 9... O-O
{[%clk 0:02:10.2]} 10. Nc6 {[%clk 0:02:02.1]} 10... Qe8 {[%clk 0:02:06.7]} 11.
Nxe7+ {[%clk 0:02:02]} 11... Qxe7 {[%clk 0:02:06.4]} 12. e3 {[%clk 0:02:02.3]}
12... Nh5 {[%clk 0:01:52.7]} 13. Bg3 {[%clk 0:01:52.1]} 13... Nxg3 {[%clk
0:01:52.7]} 14. hxg3 {[%clk 0:01:46.3]} 14... Rab8 {[%clk 0:01:48.8]} 15. Qxa7
{[%clk 0:01:46.1]} 15... Rxb2 {[%clk 0:01:45.3]} 16. Bb5 {[%clk 0:01:40.7]}
16... Rxb5 {[%clk 0:01:38]} 17. Nxb5 {[%clk 0:01:39.4]} 17... Qb4+ {[%clk
0:01:38.3]} 18. Kf1 {[%clk 0:01:37.9]} 18... Qxb5+ {[%clk 0:01:38.6]} 19. Kg1
{[%clk 0:01:38.6]} 19... Nf6 {[%clk 0:01:35.6]} 20. Rh4 {[%clk 0:01:36]} 20...
Qe2 {[%clk 0:01:13.4]} 21. Rf4 {[%clk 0:01:03.4]} 21... Bd3 {[%clk 0:01:11.3]}
22. Qa5 {[%clk 0:00:43.3]} 22... Qh5 {[%clk 0:00:45.2]} 23. Qd2 {[%clk
0:00:22.6]} 23... Bc4 {[%clk 0:00:44]} 24. Rh4 {[%clk 0:00:12.3]} 24... Qf5
{[%clk 0:00:42.5]} 25. a4 {[%clk 0:00:10.9]} 25... Ne4 {[%clk 0:00:42.4]} 26.
Qe1 {[%clk 0:00:10.4]} 26... Nd6 {[%clk 0:00:41.6]} 27. a5 {[%clk 0:00:10.2]}
27... g5 {[%clk 0:00:40]} 28. Rh5 {[%clk 0:00:09.2]} 28... Qg6 {[%clk
0:00:39.8]} 29. Rh2 {[%clk 0:00:08.7]} 29... Qf6 {[%clk 0:00:40.3]} 30. a6
{[%clk 0:00:07.9]} 30... Ra8 {[%clk 0:00:40.8]} 31. a7 {[%clk 0:00:08]} 31...
Nb5 {[%clk 0:00:41]} 32. Qa5 {[%clk 0:00:04.9]} 32... Qe7 {[%clk 0:00:39.4]} 33.
Qb6 {[%clk 0:00:04.4]} 33... Rxa7 {[%clk 0:00:37.9]} 34. Qb8+ {[%clk 0:00:04.1]}
34... Kg7 {[%clk 0:00:38]} 35. Qe5+ {[%clk 0:00:04.7]} 35... f6 {[%clk
0:00:38.1]} 36. Rxa7 {[%clk 0:00:04.3]} 36... Qxa7 {[%clk 0:00:37.6]} 37. Rxh7+
{[%clk 0:00:03.3]} 37... Kxh7 {[%clk 0:00:37.7]} 38. Qxf6 {[%clk 0:00:03.8]}
38... Qg7 {[%clk 0:00:38.4]} 39. Qf3 {[%clk 0:00:02]} 39... Nc3 {[%clk
0:00:37.6]} 40. Qh5+ {[%clk 0:00:02.1]} 40... Kg8 {[%clk 0:00:37.8]} 41. Qe8+
{[%clk 0:00:02.7]} 41... Qf8 {[%clk 0:00:38.2]} 42. Qg6+ {[%clk 0:00:03.3]}
42... Kh8 {[%clk 0:00:37.8]} 43. Qh5+ {[%clk 0:00:03.7]} 43... Kg7 {[%clk
0:00:38.1]} 44. Qxg5+ {[%clk 0:00:03.8]} 44... Kf7 {[%clk 0:00:38.7]} 45. Qf4+
{[%clk 0:00:02.9]} 45... Ke7 {[%clk 0:00:39.1]} 46. Qc7+ {[%clk 0:00:03.5]}
46... Kf6 {[%clk 0:00:39.3]} 47. Qf4+ {[%clk 0:00:02.9]} 47... Kg6 {[%clk
0:00:39.4]} 48. Qg4+ {[%clk 0:00:03.1]} 48... Kh7 {[%clk 0:00:39.5]} 49. Qh5+
{[%clk 0:00:03.4]} 49... Kg8 {[%clk 0:00:38.8]} 50. Qg5+ {[%clk 0:00:04]} 50...
Kh8 {[%clk 0:00:39.3]} 51. Qh5+ {[%clk 0:00:03.9]} 51... Kg8 {[%clk 0:00:34.7]}
52. Qg6+ {[%clk 0:00:04.1]} 52... Qg7 {[%clk 0:00:34.2]} 53. Qe8+ {[%clk
0:00:04.3]} 53... Kh7 {[%clk 0:00:34.2]} 54. Qh5+ {[%clk 0:00:04.3]} 54... Qh6
{[%clk 0:00:34.3]} 55. Qf7+ {[%clk 0:00:04.4]} 55... Kh8 {[%clk 0:00:34.4]} 56.
Qe8+ {[%clk 0:00:04.8]} 56... Kg7 {[%clk 0:00:34.5]} 57. Qe7+ {[%clk 0:00:05.4]}
57... Kg6 {[%clk 0:00:34.4]} 58. Qxe6+ {[%clk 0:00:05.6]} 58... Kg7 {[%clk
0:00:33.3]} 59. Qe7+ {[%clk 0:00:05.9]} 59... Kh8 {[%clk 0:00:32.6]} 60. Qe8+
{[%clk 0:00:06.3]} 60... Kh7 {[%clk 0:00:32.8]} 61. Qf7+ {[%clk 0:00:06.3]}
61... Qg7 {[%clk 0:00:33.1]} 62. Qh5+ {[%clk 0:00:06.9]} 62... Kg8 {[%clk
0:00:33.4]} 63. Qe8+ {[%clk 0:00:07]} 63... Qf8 {[%clk 0:00:34.1]} 64. Qg6+
{[%clk 0:00:07.4]} 64... Kh8 {[%clk 0:00:34.9]} 65. Qh5+ {[%clk 0:00:07.6]}
65... Kg7 {[%clk 0:00:34.3]} 66. Qg5+ {[%clk 0:00:08.1]} 66... Kf7 {[%clk
0:00:34.4]} 67. Qf4+ {[%clk 0:00:07.4]} 67... Ke7 {[%clk 0:00:34.7]} 68. Qc7+
{[%clk 0:00:07.6]} 68... Ke6 {[%clk 0:00:34.8]} 69. Qc6+ {[%clk 0:00:07.8]}
69... Qd6 {[%clk 0:00:34.5]} 70. Qe8+ {[%clk 0:00:07.6]} 70... Qe7 {[%clk
0:00:33.7]} 71. Qc6+ {[%clk 0:00:07.3]} 71... Kf7 {[%clk 0:00:33.8]} 72. Qh6
{[%clk 0:00:07.8]} 72... Bd3 {[%clk 0:00:23.7]} 73. Qf4+ {[%clk 0:00:06.1]}
73... Ke8 {[%clk 0:00:23.1]} 74. Qb8+ {[%clk 0:00:05.6]} 74... Qd8 {[%clk
0:00:23.1]} 75. Qe5+ {[%clk 0:00:04.9]} 75... Kd7 {[%clk 0:00:23.7]} 76. f4
{[%clk 0:00:02.5]} 76... Qc7 {[%clk 0:00:23.2]} 77. Qg7+ {[%clk 0:00:02.1]}
77... Kc6 {[%clk 0:00:23.7]} 0-1

[Event "Early-Titled-Tuesday-Blitz-February-20-2024"]
[Site "Chess.com"]
[Date "2024.02.20"]
[Round "2"]
[White "a-z30"]
[Black "MAGMAchess02"]
[Result "1-0"]
[WhiteElo "2504"]
[BlackElo "2235"]
[TimeControl "180+1"]
[EndTime "8:19:23 PST"]
[Termination "a-z30 won by checkmate"]

1. d3 {[%clk 0:03:00.9]} 1... c5 {[%clk 0:02:52.8]} 2. Nf3 {[%clk 0:03:01.8]}
2... Nc6 {[%clk 0:02:51.9]} 3. g3 {[%clk 0:03:02.5]} 3... g6 {[%clk 0:02:51.2]}
4. Bg2 {[%clk 0:03:03.2]} 4... Bg7 {[%clk 0:02:51.7]} 5. O-O {[%clk 0:03:03.5]}
5... Nf6 {[%clk 0:02:51.3]} 6. c4 {[%clk 0:03:04.1]} 6... O-O {[%clk 0:02:51.7]}
7. Nc3 {[%clk 0:03:04.6]} 7... d5 {[%clk 0:02:51.7]} 8. cxd5 {[%clk 0:03:04.1]}
8... Nxd5 {[%clk 0:02:52.6]} 9. Nxd5 {[%clk 0:03:04.4]} 9... Qxd5 {[%clk
0:02:53.5]} 10. Be3 {[%clk 0:03:04.9]} 10... Qd6 {[%clk 0:02:45.9]} 11. Rc1
{[%clk 0:03:04]} 11... Nd4 {[%clk 0:02:43.6]} 12. Nxd4 {[%clk 0:03:03.1]} 12...
cxd4 {[%clk 0:02:44.2]} 13. Bf4 {[%clk 0:03:03.2]} 13... e5 {[%clk 0:02:43.4]}
14. Bd2 {[%clk 0:03:03.1]} 14... Be6 {[%clk 0:02:41.9]} 15. Qa4 {[%clk
0:03:01.7]} 15... Qb6 {[%clk 0:02:29.5]} 16. Rc2 {[%clk 0:02:29.8]} 16... Rac8
{[%clk 0:02:24.7]} 17. Rfc1 {[%clk 0:02:28.6]} 17... Rxc2 {[%clk 0:02:24.1]} 18.
Rxc2 {[%clk 0:02:29.4]} 18... a6 {[%clk 0:01:42.3]} 19. b3 {[%clk 0:02:28.2]}
19... h5 {[%clk 0:01:23]} 20. Ba5 {[%clk 0:02:11.6]} 20... Qb5 {[%clk
0:00:57.8]} 21. Qxb5 {[%clk 0:02:05.2]} 21... axb5 {[%clk 0:00:58.7]} 22. Bxb7
{[%clk 0:02:03.6]} 22... Rb8 {[%clk 0:00:56.8]} 23. Bf3 {[%clk 0:01:42]} 23...
b4 {[%clk 0:00:50.7]} 24. Kg2 {[%clk 0:01:29.5]} 24... Rb5 {[%clk 0:00:36.1]}
25. Bd8 {[%clk 0:01:17.7]} 25... Bd5 {[%clk 0:00:22.4]} 26. Bxd5 {[%clk
0:01:13]} 26... Rxd5 {[%clk 0:00:23.3]} 27. Be7 {[%clk 0:01:11.8]} 27... Rb5
{[%clk 0:00:18.1]} 28. Rc8+ {[%clk 0:00:54.4]} 28... Kh7 {[%clk 0:00:17.8]} 29.
Kf3 {[%clk 0:00:53.1]} 29... Ra5 {[%clk 0:00:10.6]} 30. Rc2 {[%clk 0:00:52.2]}
30... Rb5 {[%clk 0:00:10.5]} 31. h3 {[%clk 0:00:44.9]} 31... Kg8 {[%clk
0:00:05.8]} 32. Rc4 {[%clk 0:00:43.9]} 32... Ra5 {[%clk 0:00:04.2]} 33. Rxb4
{[%clk 0:00:43]} 33... Rxa2 {[%clk 0:00:04.2]} 34. Rb8+ {[%clk 0:00:43.5]} 34...
Kh7 {[%clk 0:00:04.2]} 35. b4 {[%clk 0:00:42]} 35... Rb2 {[%clk 0:00:03.8]} 36.
Bc5 {[%clk 0:00:40.7]} 36... f5 {[%clk 0:00:03.7]} 37. Re8 {[%clk 0:00:31.4]}
37... Bf6 {[%clk 0:00:02.4]} 38. Bd6 {[%clk 0:00:29]} 38... e4+ {[%clk
0:00:01.3]} 39. dxe4 {[%clk 0:00:27.8]} 39... Rb3+ {[%clk 0:00:01.9]} 40. Kg2
{[%clk 0:00:26]} 40... fxe4 {[%clk 0:00:01.9]} 41. Rxe4 {[%clk 0:00:24.9]} 41...
Kg7 {[%clk 0:00:01.7]} 42. Bc5 {[%clk 0:00:23.4]} 42... Kf7 {[%clk 0:00:01.9]}
43. Bxd4 {[%clk 0:00:20.8]} 43... Rxb4 {[%clk 0:00:01.8]} 44. e3 {[%clk
0:00:21]} 44... Bxd4 {[%clk 0:00:01.6]} 45. Rxd4 {[%clk 0:00:20.8]} 45... Rb2
{[%clk 0:00:01.6]} 46. h4 {[%clk 0:00:20.9]} 46... Kg7 {[%clk 0:00:02]} 47. Kf3
{[%clk 0:00:21.1]} 47... Rb5 {[%clk 0:00:02.6]} 48. Rf4 {[%clk 0:00:20.9]} 48...
Re5 {[%clk 0:00:03]} 49. Kg2 {[%clk 0:00:21]} 49... Re6 {[%clk 0:00:03.3]} 50.
Rd4 {[%clk 0:00:20.9]} 50... Re5 {[%clk 0:00:03.8]} 51. e4 {[%clk 0:00:21.2]}
51... Re6 {[%clk 0:00:04.2]} 52. f4 {[%clk 0:00:21.3]} 52... Rb6 {[%clk
0:00:03.7]} 53. Rd3 {[%clk 0:00:20.7]} 53... Rb2+ {[%clk 0:00:03.6]} 54. Kf3
{[%clk 0:00:20.9]} 54... Kf6 {[%clk 0:00:04.2]} 55. Rd6+ {[%clk 0:00:18.7]}
55... Kf7 {[%clk 0:00:04.7]} 56. Rd3 {[%clk 0:00:15.2]} 56... Rb4 {[%clk
0:00:04.7]} 57. e5 {[%clk 0:00:14.5]} 57... Rc4 {[%clk 0:00:04.7]} 58. Ke3
{[%clk 0:00:13.7]} 58... Rc7 {[%clk 0:00:04.4]} 59. Kf3 {[%clk 0:00:14.2]} 59...
Rb7 {[%clk 0:00:04.3]} 60. Rd6 {[%clk 0:00:14.2]} 60... Ra7 {[%clk 0:00:04.1]}
61. Kg2 {[%clk 0:00:13.4]} 61... Kg7 {[%clk 0:00:04.2]} 62. Kh3 {[%clk 0:00:14]}
62... Rb7 {[%clk 0:00:04.2]} 63. e6 {[%clk 0:00:14]} 63... Kf6 {[%clk
0:00:03.2]} 64. e7+ {[%clk 0:00:11.6]} 64... Kxe7 {[%clk 0:00:02.7]} 65. Rxg6
{[%clk 0:00:11.5]} 65... Kf7 {[%clk 0:00:02.2]} 66. Rg5 {[%clk 0:00:12.4]} 66...
Kf6 {[%clk 0:00:02.4]} 67. Rxh5 {[%clk 0:00:12.5]} 67... Rb3 {[%clk 0:00:02.8]}
68. Rg5 {[%clk 0:00:13.4]} 68... Rb2 {[%clk 0:00:03.1]} 69. Kg4 {[%clk
0:00:13.8]} 69... Rc2 {[%clk 0:00:03.2]} 70. h5 {[%clk 0:00:14.6]} 70... Rc4
{[%clk 0:00:03.5]} 71. Rg6+ {[%clk 0:00:15.4]} 71... Kf7 {[%clk 0:00:03.4]} 72.
Kg5 {[%clk 0:00:15.8]} 72... Rc5+ {[%clk 0:00:03.8]} 73. f5 {[%clk 0:00:16]}
73... Rc3 {[%clk 0:00:04.3]} 74. g4 {[%clk 0:00:16.5]} 74... Rc8 {[%clk
0:00:04.8]} 75. Ra6 {[%clk 0:00:15.8]} 75... Rg8+ {[%clk 0:00:05]} 76. Rg6
{[%clk 0:00:15.1]} 76... Kf8 {[%clk 0:00:04.6]} 77. h6 {[%clk 0:00:16]} 77...
Rh8 {[%clk 0:00:04.7]} 78. Rg7 {[%clk 0:00:15.4]} 78... Ke8 {[%clk 0:00:04.3]}
79. Kg6 {[%clk 0:00:15.2]} 79... Kf8 {[%clk 0:00:04.9]} 80. g5 {[%clk 0:00:15]}
80... Ke8 {[%clk 0:00:04.5]} 81. f6 {[%clk 0:00:14.9]} 81... Kf8 {[%clk
0:00:05]} 82. h7 {[%clk 0:00:14]} 82... Rxh7 {[%clk 0:00:03.9]} 83. Rxh7 {[%clk
0:00:13.4]} 83... Kg8 {[%clk 0:00:04.8]} 84. Re7 {[%clk 0:00:12.2]} 84... Kf8
{[%clk 0:00:04.1]} 85. Re5 {[%clk 0:00:12.7]} 85... Kg8 {[%clk 0:00:03.9]} 86.
Re8# {[%clk 0:00:13.4]} 1-0